fUSD/lending_fUSD_20260417
["ID","MTS","AMOUNT","RATE_DAILY","PERIOD"]
[420628621,1776372632317,-500.0,8.966e-05,2]
[420628622,1776372632327,-500.0,8.966e-05,2]
[420628623,1776372632337,-500.0,8.966e-05,2]
[420628624,1776372632347,-500.0,8.966e-05,2]
[420628625,1776372632357,-500.0,8.966e-05,2]
[420628626,1776372632367,-500.0,8.966e-05,2]
[420628627,1776372632377,-500.0,8.966e-05,2]
[420628628,1776372632387,-500.0,8.966e-05,2]
[420628629,1776372632397,-500.0,8.966e-05,2]
[420628630,1776372632407,-500.0,8.966e-05,2]
[420628631,1776372632416,-500.0,8.966e-05,2]
[420628632,1776372632426,-500.0,8.966e-05,2]
[420628633,1776372632436,-500.0,8.966e-05,2]
[420628634,1776372632446,-500.0,8.966e-05,2]
[420628635,1776372632456,-500.0,8.966e-05,2]
[420628636,1776372632466,-500.0,8.966e-05,2]
[420628637,1776372632475,-500.0,8.966e-05,2]
[420628638,1776372632485,-360.90349752,8.966e-05,2]
[420628639,1776372632495,-500.0,8.966e-05,2]
[420628640,1776372632505,-500.0,8.966e-05,2]
[420628641,1776372632515,-500.0,8.966e-05,2]
[420628642,1776372632525,-500.0,8.966e-05,2]
[420628643,1776372632535,-500.0,8.966e-05,2]
[420628644,1776372632544,-500.0,8.966e-05,2]
[420628645,1776372632554,-500.0,8.966e-05,2]
[420628646,1776372632564,-500.0,8.966e-05,2]
[420628647,1776372632574,-500.0,8.966e-05,2]
[420628648,1776372632583,-500.0,8.966e-05,2]
[420628649,1776372632596,-500.0,8.966e-05,2]
[420628650,1776372632606,-500.0,8.966e-05,2]
[420628651,1776372632616,-500.0,8.966e-05,2]
[420628652,1776372632626,-500.0,8.966e-05,2]
[420628653,1776372632636,-150.0,8.966e-05,2]
[420628654,1776372632646,-500.0,8.966e-05,2]
[420628655,1776372632656,-500.0,8.966e-05,2]
[420628656,1776372632665,-500.0,8.966e-05,2]
[420628657,1776372632675,-500.0,8.966e-05,2]
[420628658,1776372632685,-500.0,8.966e-05,2]
[420628659,1776372632695,-500.0,8.966e-05,2]
[420628660,1776372632705,-500.0,8.966e-05,2]
[420628661,1776372632715,-500.0,8.966e-05,2]
[420628662,1776372632725,-500.0,8.966e-05,2]
[420628663,1776372632734,-500.0,8.966e-05,2]
[420628664,1776372632744,-500.0,8.966e-05,2]
[420628665,1776372632754,-500.0,8.966e-05,2]
[420628666,1776372632764,-500.0,8.966e-05,2]
[420628667,1776372632774,-500.0,8.966e-05,2]
[420628668,1776372632783,-500.0,8.966e-05,2]
[420628669,1776372632794,-500.0,8.966e-05,2]
[420628670,1776372632804,-500.0,8.966e-05,2]
[420628671,1776372632814,-500.0,8.966e-05,2]
[420628672,1776372632824,-500.0,8.966e-05,2]
[420628673,1776372632834,-500.0,8.966e-05,2]
[420628674,1776372632844,-500.0,8.966e-05,2]
[420628675,1776372632853,-500.0,8.966e-05,2]
[420628676,1776372632863,-500.0,8.966e-05,2]
[420628677,1776372632872,-300.0,8.966e-05,2]
[420628678,1776372632882,-500.0,8.966e-05,2]
[420628679,1776372632892,-500.0,8.966e-05,2]
[420628680,1776372632902,-500.0,8.966e-05,2]
[420628681,1776372632912,-500.0,8.966e-05,2]
[420628682,1776372632921,-578.20924308,8.992e-05,2]
[420628683,1776372632931,-646.65982734,8.992e-05,2]
[420628684,1776372632941,-200.0,8.992e-05,2]
[420628685,1776372632951,-1280.88388878,8.992e-05,2]
[420628686,1776372632960,-151.0,8.992e-05,2]
[420628687,1776372632970,-174.61919141,8.992e-05,2]
[420628688,1776372632980,-167.90306508,8.992e-05,2]
[420628689,1776372632989,-1900.0,9e-05,3]
[420628690,1776372632999,-150.0,9.068e-05,2]
[420628691,1776372633008,-150.0,9.068e-05,2]
[420628692,1776372633018,-150.0,9.068e-05,2]
[420628693,1776372633027,-150.0,9.068e-05,2]
[420628694,1776372633048,-500.0,9.073e-05,2]
[420628695,1776372633059,-96767.47808036,9.091e-05,2]
[420628696,1776372633075,-12932.02291231,9.091e-05,2]
[420628697,1776372633090,-410.6584033,9.091e-05,2]
[420628698,1776372633102,-3000.08,9.091e-05,2]
[420628699,1776372633115,-2107.37240693,9.091e-05,2]
[420628700,1776372633135,-3037.563882,9.091e-05,2]
[420628904,1776372640388,-500.0,8.966e-05,2]
[420628906,1776372640397,-497449.6057151,9.091e-05,2]
[420628908,1776372640406,-3545.3702,9.173e-05,2]
[420628910,1776372640415,-33068.5791,9.191e-05,2]
[420628911,1776372640425,-150.0,9.2e-05,2]
[420628913,1776372640434,-150.0,9.21e-05,2]
[420628915,1776372640443,-250.0,9.239e-05,2]
[420628917,1776372640453,-156.24,9.24e-05,2]
[420628919,1776372640462,-3033.55993546,9.255e-05,2]
[420628921,1776372640471,-500.0,9.491e-05,2]
[420628923,1776372640481,-1000.0,9.491e-05,2]
[420628925,1776372640490,-164.61255082,9.498e-05,2]
[420628927,1776372640499,-269.14735528,9.498e-05,2]
[420628929,1776372640508,-150.0,9.498e-05,2]
[420628931,1776372640517,-150.0,9.498e-05,2]
[420628933,1776372640526,-150.0,9.498e-05,2]
[420628935,1776372640536,-262.66144291,9.498e-05,2]
[420628937,1776372640545,-150.0,9.498e-05,2]
[420628939,1776372640554,-168.8570491,9.498e-05,2]
[420628941,1776372640563,-500.0,9.498e-05,2]
[420628943,1776372640572,-500.0,9.498e-05,2]
[420628945,1776372640583,-500.0,9.498e-05,2]
[420628947,1776372640593,-539.13798207,9.498e-05,2]
[420628949,1776372640602,-224.40797371,9.498e-05,2]
[420628952,1776372640612,-500.0,9.498e-05,2]
[420628954,1776372640622,-500.0,9.498e-05,2]
[420628956,1776372640631,-231.04926696,9.498e-05,2]
[420628958,1776372640640,-150.0,9.498e-05,2]
[420628960,1776372640649,-150.17997214,9.498e-05,2]
[420628962,1776372640660,-151.0,9.51e-05,2]
[420628964,1776372640669,-198.91,9.51e-05,2]
[420628966,1776372640678,-1500.0,9.537e-05,2]
[420628968,1776372640688,-200.0,9.54e-05,2]
[420628970,1776372640697,-1328.27659266,9.54e-05,2]
[420628972,1776372640706,-302.55001402,9.54e-05,2]
[420628974,1776372640715,-181.08010149,9.54e-05,2]
[420628976,1776372640724,-2000.0,9.56e-05,2]
[420628978,1776372640733,-500.0,9.621e-05,2]
[420628980,1776372640742,-394.0,9.639e-05,2]
[420628982,1776372640751,-394.0,9.65e-05,2]
[420628984,1776372640760,-394.0,9.652e-05,2]
[420628986,1776372640769,-29332.03,9.67e-05,2]
[420628988,1776372640779,-22068.17,9.67e-05,2]
[420628990,1776372640788,-19999.99,9.67e-05,2]
[420628992,1776372640797,-348.0,9.706e-05,2]
[420628994,1776372640806,-394.0,9.719e-05,2]
[420628995,1776372640815,-394.0,9.744e-05,2]
[420628998,1776372640827,-221.0,9.75e-05,5]
[420629000,1776372640837,-155.0,9.75e-05,5]
[420629002,1776372640847,-420.0,9.752e-05,2]
[420629004,1776372640856,-1680.0,9.752e-05,2]
[420629006,1776372640866,-255.0,9.753e-05,2]
[420629008,1776372640875,-394.0,9.758e-05,2]
[420629010,1776372640886,-394.0,9.761e-05,2]
[420629012,1776372640895,-394.0,9.776e-05,2]
[420629014,1776372640904,-394.0,9.78e-05,2]
[420629016,1776372640913,-394.0,9.782e-05,2]
[420629018,1776372640922,-160.0,9.782e-05,2]
[420629020,1776372640931,-394.0,9.799e-05,2]
[420629022,1776372640940,-348.0,9.802e-05,2]
[420629024,1776372640949,-151.0,9.802e-05,2]
[420629026,1776372640958,-348.0,9.806e-05,2]
[420629028,1776372640967,-369.0,9.818e-05,2]
[420629030,1776372640976,-387.0,9.819e-05,2]
[420629032,1776372640985,-394.0,9.835e-05,2]
[420629034,1776372640994,-394.0,9.847e-05,2]
[420629036,1776372641007,-394.0,9.855e-05,2]
[420629038,1776372641016,-394.0,9.865e-05,2]
[420629040,1776372641025,-394.0,9.868e-05,2]
[420629042,1776372641034,-329.0,9.876e-05,2]
[420629044,1776372641043,-394.0,9.88e-05,2]
[420629046,1776372641052,-394.0,9.896e-05,2]
[420629048,1776372641061,-394.0,9.916e-05,2]
[420629050,1776372641070,-394.0,9.927e-05,2]
[420629052,1776372641080,-394.0,9.927e-05,2]
[420629054,1776372641090,-394.0,9.931e-05,2]
[420629056,1776372641099,-362.0,9.935e-05,2]
[420629058,1776372641108,-394.0,9.968e-05,2]
[420629060,1776372641118,-394.0,9.975e-05,2]
[420629062,1776372641128,-394.0,9.99e-05,2]
[420629064,1776372641137,-394.0,9.991e-05,2]
[420629066,1776372641146,-347.85227654,0.0001,2]
[420629068,1776372641157,-273.8412157,0.0001,2]
[420629070,1776372641166,-394.0,0.00010002,2]
[420629072,1776372641176,-394.0,0.00010019,2]
[420629074,1776372641186,-3528.0,0.00010032,2]
[420629076,1776372641195,-1047.0,0.00010032,2]
[420629078,1776372641207,-3777.0,0.00010032,2]
[420629080,1776372641217,-416.0,0.00010032,2]
[420629082,1776372641226,-500.0,0.00010038,2]
[420629084,1776372641235,-337.0,0.00010044,2]
[420629086,1776372641245,-301.45296488,0.00010088,2]
[420629088,1776372641254,-1377.42282659,0.00010088,2]
[420629090,1776372641263,-187.78006525,0.00010088,2]
[420629092,1776372641272,-394.0,0.00010113,2]
[420629094,1776372641281,-71538.39063,0.00010165,2]
[420629096,1776372641291,-335.5070003,0.0001018,2]
[420629098,1776372641300,-394.0,0.00010181,2]
[420629100,1776372641310,-31904.45090758,0.00010253,2]
[420629102,1776372641319,-151.0,0.00010253,2]
[420629104,1776372641328,-151.0,0.00010253,2]
[420629106,1776372641338,-151.0,0.00010253,2]
[420629108,1776372641347,-151.0,0.00010253,2]
[420629110,1776372641356,-151.0,0.00010253,2]
[420629112,1776372641366,-266.369088,0.00010253,2]
[420629114,1776372641376,-4679.571915,0.00010284,2]
[420629117,1776372641386,-274.417598,0.00010284,2]
[420629118,1776372641395,-1000.0,0.00010394,2]
[420629119,1776372641405,-580.65733914,0.00010403,2]
[420629120,1776372641414,-196.85784664,0.00010438,2]
[420629121,1776372641424,-250.58961756,0.00010473,2]
[420629122,1776372641434,-629.49484896,0.00010484,2]
[420629123,1776372641443,-7176.47406124,0.00010486,2]
[420629124,1776372641453,-273.84121568,0.00010487,2]
[420629125,1776372641462,-151.0,0.00010491,2]
[420629126,1776372641471,-200379.2088342,0.00010494,2]
[420629127,1776372641498,-450.47,0.00010494,2]
[420629128,1776372641519,-29948.97847713,0.00010494,2]
[420629129,1776372641535,-1316.30482803,0.00010494,2]
[420629130,1776372641547,-306.069,0.00010494,2]
[420629132,1776372641559,-7264.06553711,0.00010494,2]
[420629273,1776372643028,-371.81079061,9.09e-05,2]
[420629275,1776372643037,-174.14550169,9.09e-05,2]
[420629277,1776372643047,-438.53759738,9.09e-05,2]
[420629282,1776372643081,-61.46240262,9.09e-05,2]
[420629284,1776372643091,-500.0,9.09e-05,2]
[420629286,1776372643100,-500.0,9.09e-05,2]
[420629288,1776372643110,-536.60222055,9.09e-05,2]
[420629290,1776372643119,-176.2741835,9.09e-05,2]
[420629292,1776372643129,-500.0,9.09e-05,2]
[420629294,1776372643138,-500.0,9.09e-05,2]
[420629296,1776372643148,-500.0,9.09e-05,2]
[420629298,1776372643158,-863.367,0.00010032,2]
[420629300,1776372643168,-7274.48671223,0.00010494,2]
[420629303,1776372643183,-75000.00000003,0.00010494,2]
[420629732,1776372670208,-793.1136,0.00010264,2]
[420629733,1776372670220,-3991.20244082,0.00010264,2]
[420629734,1776372670230,-16290.81532355,0.00010494,2]
[420629735,1776372670241,-151.0,0.00010494,2]
[420629736,1776372670251,-151.0,0.00010494,2]
[420629737,1776372670261,-151.0,0.00010494,2]
[420629738,1776372670270,-151.0,0.00010494,2]
[420629739,1776372670280,-151.0,0.00010494,2]
[420629740,1776372670290,-191.7046,0.000105,2]
[420629741,1776372670301,-150.0,0.000105,2]
[420629742,1776372670314,-10159.64611273,0.000105,2]
[420629743,1776372670324,-164.52,0.00010518,2]
[420629744,1776372670334,-323.47494523,0.000106,2]
[420629745,1776372670344,-2000.0,0.000106,2]
[420629746,1776372670354,-199.66701123,0.000106,2]
[420629747,1776372670363,-8347.6877202,0.00010619,2]
[420629748,1776372670373,-31744.1800767,0.00010619,2]
[420629749,1776372670383,-9764.5700358,0.00010619,2]
[420629750,1776372670393,-160.3040824,0.00010619,2]
[420629751,1776372670403,-2000.0,0.00010622,2]
[420629752,1776372670413,-1428.38747117,0.00010636,2]
[420629753,1776372670423,-194.72792766,0.00010636,2]
[420629754,1776372670435,-436.8,0.00010639,2]
[420629755,1776372670446,-454.95,0.00010639,2]
[420629756,1776372670456,-200.0,0.00010658,2]
[420629757,1776372670467,-200.0,0.00010658,2]
[420629758,1776372670478,-436.8,0.00010665,2]
[420629759,1776372670489,-436.8,0.00010679,2]
[420629760,1776372670499,-152.0,0.00010684,7]
[420629761,1776372670509,-40759.95580397,0.000107,2]
[420629762,1776372670522,-26043.30398392,0.000107,2]
[420629763,1776372670534,-6486.69601608,0.000107,2]
[420629764,1776372670560,-46249.356553,0.000107,2]
[420629765,1776372670573,-956.75230534,0.000107,2]
[420629766,1776372670598,-1165.57730191,0.000107,2]
[420629767,1776372670610,-1439.22,0.000107,2]
[420629768,1776372670623,-537.60600006,0.000107,2]
[420629770,1776372811392,500.0,8.314e-05,2]
[420629771,1776372959508,150.0,8.381e-05,2]
[420629772,1776372979795,150.0,0.00011233,120]
[420629778,1776373524255,150.0,7.964e-05,2]
[420629780,1776373709000,-150.0,8.35e-05,2]
[420629781,1776373734535,-108.0,8.35e-05,2]
[420629782,1776373734565,-1642.0,8.35e-05,2]
[420629784,1776373832103,-232.0,8.35e-05,2]
[420629785,1776373832113,-120.24,8.35e-05,2]
[420629786,1776373832123,-161.07,8.51e-05,2]
[420629787,1776373832132,-154.89,8.681e-05,2]
[420629788,1776373832141,-1169.215,8.688e-05,2]
[420629789,1776373832151,-157.878,8.688e-05,2]
[420629790,1776373832160,-184.06185048,8.688e-05,2]
[420629791,1776373832170,-150.0,8.7e-05,2]
[420629792,1776373832179,-1000.0,8.763e-05,2]
[420629793,1776373832188,-1200.0,8.763e-05,2]
[420629794,1776373832198,-300.0,8.763e-05,2]
[420629795,1776373832207,-6458.69136038,8.764e-05,2]
[420629796,1776373832229,-7339.2062754,8.764e-05,2]
[420629797,1776373832240,-1309.45761818,8.764e-05,2]
[420629798,1776373832251,-19448.83382538,8.764e-05,2]
[420629799,1776373832263,-6800.75666621,8.764e-05,2]
[420629800,1776373832286,-1782.3873477,8.764e-05,2]
[420629801,1776373832305,-300.0,8.764e-05,2]
[420629802,1776373832316,-1000.0,8.764e-05,2]
[420629803,1776373832327,-716.88532856,8.764e-05,2]
[420629804,1776373832342,-12307.82282015,8.764e-05,2]
[420629805,1776373832354,-776.35787928,8.764e-05,2]
[420629806,1776373832366,-224167.33467876,8.764e-05,2]
[420629807,1776373832376,-71105.2392,8.764e-05,2]
[420629808,1776373832387,-184.06185048,8.764e-05,2]
[420629809,1776373832397,-1443.0338,8.765e-05,2]
[420629810,1776373832407,-1613.5,8.78e-05,2]
[420629811,1776373832416,-400.0,8.8e-05,3]
[420629812,1776373832426,-207.08,8.82e-05,2]
[420629813,1776373832436,-300.0,8.842e-05,2]
[420629814,1776373832446,-500.69201092,8.843e-05,2]
[420629815,1776373832456,-500.0,8.843e-05,2]
[420629816,1776373832466,-500.0,8.843e-05,2]
[420629817,1776373832475,-10073.94096378,8.854e-05,2]
[420629818,1776373832484,-299.99,8.863e-05,2]
[420629819,1776373832494,-972.4,8.863e-05,2]
[420629820,1776373832504,-150.0,8.863e-05,2]
[420629821,1776373832513,-348.25248642,8.864e-05,2]
[420629822,1776373832523,-500.0,8.864e-05,2]
[420629823,1776373832533,-500.0,8.864e-05,2]
[420629825,1776373832542,-500.0,8.864e-05,2]
[420629827,1776373832551,-500.0,8.864e-05,2]
[420629830,1776373832560,-500.0,8.864e-05,2]
[420629832,1776373832570,-500.0,8.864e-05,2]
[420629834,1776373832579,-500.0,8.864e-05,2]
[420629836,1776373832589,-500.0,8.864e-05,2]
[420629838,1776373832598,-500.0,8.864e-05,2]
[420629840,1776373832608,-500.0,8.864e-05,2]
[420629842,1776373832617,-500.0,8.864e-05,2]
[420629844,1776373832626,-500.0,8.864e-05,2]
[420629845,1776373832638,-500.0,8.864e-05,2]
[420629846,1776373832650,-500.0,8.864e-05,2]
[420629847,1776373832659,-500.0,8.864e-05,2]
[420629848,1776373832668,-500.0,8.864e-05,2]
[420629849,1776373832678,-500.0,8.864e-05,2]
[420629850,1776373832687,-500.0,8.864e-05,2]
[420629851,1776373832697,-500.0,8.864e-05,2]
[420629852,1776373832706,-308.72821224,8.864e-05,2]
[420629853,1776373832715,-500.0,8.864e-05,2]
[420629854,1776373832725,-500.0,8.864e-05,2]
[420629855,1776373832734,-500.0,8.864e-05,2]
[420629856,1776373832744,-500.0,8.864e-05,2]
[420629857,1776373832753,-500.0,8.864e-05,2]
[420629858,1776373832763,-500.0,8.864e-05,2]
[420629859,1776373832773,-500.0,8.864e-05,2]
[420629860,1776373832782,-500.0,8.864e-05,2]
[420629861,1776373832792,-500.0,8.864e-05,2]
[420629862,1776373832801,-500.0,8.864e-05,2]
[420629863,1776373832811,-500.0,8.864e-05,2]
[420629864,1776373832821,-500.0,8.864e-05,2]
[420629865,1776373832830,-500.0,8.864e-05,2]
[420629866,1776373832840,-500.0,8.864e-05,2]
[420629867,1776373832849,-500.0,8.864e-05,2]
[420629868,1776373832859,-500.0,8.864e-05,2]
[420629869,1776373832868,-500.0,8.864e-05,2]
[420629870,1776373832877,-500.0,8.864e-05,2]
[420629871,1776373832887,-9999.99,8.864e-05,2]
[420629872,1776373832896,-500.0,8.864e-05,2]
[420629873,1776373832905,-500.0,8.864e-05,2]
[420629874,1776373832915,-500.0,8.864e-05,2]
[420629875,1776373832924,-500.0,8.864e-05,2]
[420629876,1776373832933,-500.0,8.864e-05,2]
[420629877,1776373832943,-500.0,8.864e-05,2]
[420629878,1776373832952,-500.0,8.864e-05,2]
[420629879,1776373832962,-500.0,8.864e-05,2]
[420629880,1776373832971,-500.0,8.864e-05,2]
[420629881,1776373832980,-500.0,8.864e-05,2]
[420629882,1776373832989,-500.0,8.864e-05,2]
[420629883,1776373832998,-500.0,8.864e-05,2]
[420629884,1776373833008,-500.0,8.864e-05,2]
[420629885,1776373833017,-500.0,8.864e-05,2]
[420629886,1776373833026,-500.0,8.864e-05,2]
[420629887,1776373833035,-500.0,8.864e-05,2]
[420629888,1776373833044,-500.0,8.864e-05,2]
[420629889,1776373833053,-500.0,8.864e-05,2]
[420629890,1776373833063,-485.58434286,8.864e-05,2]
[420629891,1776373833072,-500.0,8.864e-05,2]
[420629892,1776373833082,-500.0,8.864e-05,2]
[420629893,1776373833091,-500.0,8.864e-05,2]
[420629894,1776373833100,-500.0,8.864e-05,2]
[420629895,1776373833109,-17332.08407152,8.864e-05,2]
[420629896,1776373833122,-5746.46770745,8.864e-05,2]
[420629897,1776373833134,-4044.8175287,8.864e-05,2]
[420629898,1776373833145,-50959.9129101,8.864e-05,2]
[420629899,1776373833157,-4934.76220405,8.864e-05,2]
[420629900,1776373833168,-398.27699251,8.864e-05,2]
[420629901,1776373833183,-447.6126523,8.864e-05,2]
[420629912,1776373838461,-361.46503931,8.863e-05,2]
[420629913,1776373838470,-65.15342727,8.863e-05,2]
[420629914,1776373838567,-434.84657273,8.863e-05,2]
[420629915,1776373838577,-500.0,8.863e-05,2]
[420629916,1776373838586,-500.0,8.863e-05,2]
[420629917,1776373838596,-500.0,8.863e-05,2]
[420629918,1776373838605,-173.39192845,8.863e-05,2]
[420629919,1776373838615,-500.0,8.863e-05,2]
[420629920,1776373838624,-219.53767058,8.863e-05,2]
[420629921,1776373838634,-500.0,8.863e-05,2]
[420629922,1776373838643,-500.0,8.864e-05,2]
[420629923,1776373838652,-2033.22382824,8.864e-05,2]
[420629978,1776373870630,-470.89862068,8.864e-05,2]
[420629979,1776373870642,-372.34049029,8.864e-05,2]
[420629980,1776373870654,-3984.22621312,8.864e-05,2]
[420629981,1776373870682,-670.16204736,8.864e-05,2]
[420629982,1776373870776,-33848.36473368,8.864e-05,2]
[420629983,1776373870787,-150.99,8.864e-05,2]
[420629984,1776373870797,-10856.7157,8.867e-05,2]
[420629985,1776373870811,-900.0,8.9e-05,3]
[420629986,1776373870821,-871.77598971,8.946e-05,2]
[420629987,1776373870831,-1300.0,9e-05,3]
[420629988,1776373870840,-578.20924308,9.252e-05,2]
[420629989,1776373870850,-646.65982734,9.252e-05,2]
[420629990,1776373870860,-174.61919141,9.252e-05,2]
[420629991,1776373870870,-300.0,9.366e-05,2]
[420629992,1776373870880,-35041.02,9.405e-05,2]
[420629993,1776373870889,-200.0,9.496e-05,2]
[420629994,1776373870899,-1680.0,9.639e-05,2]
[420629995,1776373870909,-319.0,9.726e-05,2]
[420629996,1776373870918,-255.0,9.749e-05,2]
[420629997,1776373870928,-156.0,9.75e-05,5]
[420629998,1776373870937,-160.0,9.77e-05,2]
[420629999,1776373870947,-1218.0,9.798e-05,2]
[420630000,1776373870958,-926.0,9.798e-05,2]
[420630001,1776373870968,-181.08010149,9.8e-05,2]
[420630002,1776373870978,-2473.0,9.837e-05,2]
[420630003,1776373870989,-422.12,9.837e-05,2]
[420630004,1776373870998,-1600.0,9.886e-05,2]
[420630005,1776373871008,-3617.90990963,9.914e-05,2]
[420630006,1776373871018,-1800.0,0.0001,3]
[420630007,1776373871028,-622.0,0.00010032,2]
[420630008,1776373871037,-1348.0,0.00010032,2]
[420630009,1776373871046,-1047.0,0.00010032,2]
[420630010,1776373871055,-1264.0,0.00010032,2]
[420630011,1776373871065,-191.6872,0.000101,2]
[420630012,1776373871074,-250.0,0.000102,2]
[420630013,1776373871084,-1478.2117,0.000102,2]
[420630014,1776373871094,-419.66323264,0.0001029,2]
[420630015,1776373871104,-316723.37703788,0.000103,2]
[420630016,1776373871117,-1407.38003316,0.000103,2]
[420630017,1776373871136,-751.48,0.000103,2]
[420630018,1776373871159,-401.01493239,0.000103,2]
[420630019,1776373871239,-276.99747719,0.000103,2]
[420630020,1776373871271,-1414.65637329,0.000103,2]
[420630021,1776373871812,-2258.78028744,0.000103,2]
[420630022,1776373872397,-18799.28192885,0.000103,2]
[420630023,1776373957560,310.1849,8.25e-05,2]
[420630024,1776374157966,165.49,8.22e-05,2]
[420630026,1776374493830,-500.0,8.318e-05,2]
[420630027,1776374493856,-250.0,8.334e-05,2]
[420630028,1776374493881,-184.61,8.349e-05,2]
[420630029,1776374493907,-65.39,8.349e-05,2]
[420630030,1776374497555,273.83,8.155e-05,2]
[420630031,1776374605363,154.6,8.092e-05,2]
[420630032,1776374610925,307.26,8.092e-05,2]
[420630034,1776374667107,163.41,8.219e-05,2]
[420630035,1776374720525,150.0,7.866e-05,2]
[420630036,1776374720580,150.0,7.866e-05,2]
[420630037,1776374722585,150.0,7.866e-05,2]
[420630038,1776374726220,150.0,7.866e-05,2]
[420630039,1776374726252,150.0,7.866e-05,2]
[420630040,1776374726299,150.0,7.866e-05,2]
[420630041,1776374733893,150.0,7.866e-05,2]
[420630042,1776374738853,150.0,7.866e-05,2]
[420630043,1776374738963,150.0,7.866e-05,2]
[420630044,1776374759165,732.5,8.092e-05,2]
[420630080,1776375031960,-98.43,8.349e-05,2]
[420630082,1776375031971,-246.15,8.423e-05,2]
[420630083,1776375031980,-1.77026306,8.423e-05,2]
[420630084,1776375031996,-216.64973694,8.423e-05,2]
[420630085,1776375032005,-307.69,8.497e-05,2]
[420630086,1776375032015,-273.03,8.497e-05,2]
[420630087,1776375032024,-500.29600956,8.543e-05,2]
[420630088,1776375032033,-500.0,8.543e-05,2]
[420630089,1776375032043,-497.3342535,8.543e-05,2]
[420630090,1776375032054,-2.6657465,8.543e-05,2]
[420630091,1776375032067,-500.0,8.543e-05,2]
[420630092,1776375032078,-500.0,8.543e-05,2]
[420630093,1776375032088,-300.0,8.563e-05,2]
[420630094,1776375032097,-1200.0,8.563e-05,2]
[420630095,1776375032107,-150.0,8.563e-05,2]
[420630096,1776375032116,-300.0,8.563e-05,2]
[420630097,1776375032126,-2252.49920966,8.564e-05,2]
[420630098,1776375032137,-13225.43526591,8.564e-05,2]
[420630099,1776375032149,-1466.46,8.564e-05,2]
[420630100,1776375032186,-18277.64251791,8.564e-05,2]
[420630101,1776375032197,-969.80549567,8.564e-05,2]
[420630102,1776375032209,-68692.78531085,8.564e-05,2]
[420630103,1776375032218,-317190.0207366,8.564e-05,2]
[420630104,1776375032229,-55715.88326556,8.564e-05,2]
[420630105,1776375032241,-54448.00329784,8.564e-05,2]
[420630107,1776375032250,-369.22,8.572e-05,2]
[420630108,1776375032259,-327.64,8.572e-05,2]
[420630109,1776375032268,-430.76,8.646e-05,2]
[420630110,1776375032277,-382.24,8.646e-05,2]
[420630111,1776375032286,-275.55054348,8.646e-05,2]
[420630112,1776375032300,-2138.3115026,8.664e-05,2]
[420630113,1776375032311,-361.6884974,8.664e-05,2]
[420630114,1776375032320,-3863.2806,8.664e-05,2]
[420630115,1776375032330,-150.0,8.7e-05,2]
[420630116,1776375032339,-676.94,8.72e-05,2]
[420630117,1776375032349,-600.7,8.72e-05,2]
[420630118,1776375032363,-150.99,8.72e-05,2]
[420630119,1776375032372,-290.56888095,8.74e-05,2]
[420630120,1776375032382,-9999.99,8.741e-05,2]
[420630121,1776375032391,-470.89,8.741e-05,2]
[420630122,1776375032401,-448.66,8.742e-05,2]
[420630123,1776375032411,-500.0,8.743e-05,2]
[420630124,1776375032421,-500.0,8.743e-05,2]
[420630125,1776375032433,-283.35,8.743e-05,2]
[420630126,1776375032442,-1636.616,8.752e-05,2]
[420630127,1776375032452,-159.921,8.752e-05,2]
[420630128,1776375032463,-500.0,8.763e-05,2]
[420630129,1776375032473,-518.88343016,8.763e-05,2]
[420630130,1776375032483,-518.88343016,8.763e-05,2]
[420630131,1776375032495,-518.88343016,8.763e-05,2]
[420630132,1776375032504,-518.88343016,8.763e-05,2]
[420630133,1776375032514,-518.88343016,8.763e-05,2]
[420630134,1776375032527,-518.88343016,8.763e-05,2]
[420630135,1776375032537,-518.88343016,8.763e-05,2]
[420630136,1776375032546,-518.88343016,8.763e-05,2]
[420630137,1776375032557,-518.88343016,8.763e-05,2]
[420630138,1776375032567,-518.88343016,8.763e-05,2]